fUSD/lending_fUSD_20250804
["ID","MTS","AMOUNT","RATE_DAILY","PERIOD"]
[377166901,1754265620735,208.14991916,0.00029609,120]
[377166902,1754265692693,430.01,0.0002683,120]
[377166904,1754265774719,176.92743128,0.00029609,120]
[377166905,1754265784260,859.01,0.00027801,120]
[377166913,1754266232443,-800.0,0.00019,2]
[377166914,1754266232453,-250.0,0.00019006,2]
[377166915,1754266232463,-300.0,0.00019011,2]
[377166916,1754266232473,-1000.0,0.00019011,4]
[377166917,1754266232483,-117.25831303,0.00019023,2]
[377166918,1754266232494,-132.74168697,0.00019023,2]
[377166919,1754266232504,-731.50447101,0.00019359,2]
[377166920,1754266232547,-468.49552899,0.00019359,2]
[377166921,1754266232557,-300.0,0.0001936,2]
[377166922,1754266232566,-2500.0,0.0001936,2]
[377166923,1754266232575,-150.0,0.0002,2]
[377166924,1754266232585,-300.0,0.00020899,2]
[377166925,1754266232594,-62.85783303,0.000209,2]
[377166926,1754266232606,-237.14216697,0.000209,2]
[377166927,1754266232615,-300.0,0.000209,2]
[377166928,1754266232625,-1000.0,0.000209,4]
[377166929,1754266232634,-243.93728416,0.000209,2]
[377166930,1754266232650,-1306.57208117,0.000209,2]
[377166931,1754266232662,-949.49063467,0.000209,2]
[377166932,1754266232672,-169.52846549,0.000209,2]
[377166933,1754266232696,-130.47153451,0.000209,2]
[377166934,1754266232706,-250.0,0.000209,2]
[377166935,1754266232716,-150.0,0.0002118,2]
[377166936,1754266232725,-2894.81382837,0.00021484,2]
[377166937,1754266232738,-572.24946355,0.00021484,2]
[377166938,1754266232750,-412.32450157,0.00021484,2]
[377166939,1754266232778,-1788.76495735,0.00021484,2]
[377166940,1754266232790,-2218.4,0.00021484,2]
[377166941,1754266232802,-13639.6697578,0.00021484,2]
[377166942,1754266232811,-601.55326636,0.00022145,2]
[377166944,1754266232821,-401.03551091,0.00022145,2]
[377166946,1754266232831,-242.0,0.0002237,2]
[377166948,1754266232842,-55.36546775,0.00023182,2]
[377166950,1754266232854,-99.20453225,0.00023182,2]
[377166951,1754266232864,-237.0,0.0002355,2]
[377166952,1754266232873,-3201.95438656,0.000245,2]
[377166953,1754266232883,-1409.23,0.00024635,2]
[377166954,1754266232892,-1406.7578197,0.00024658,3]
[377166955,1754266232902,-232.0,0.0002473,2]
[377166956,1754266232911,-151.0,0.000249,7]
[377166957,1754266232921,-151.0,0.000249,7]
[377166958,1754266232931,-151.0,0.000249,7]
[377166959,1754266232940,-250.0,0.00025105,2]
[377166960,1754266232950,-227.0,0.0002592,2]
[377166961,1754266232961,-1299.38,0.00026357,2]
[377166962,1754266232971,-4219.19961554,0.00026361,2]
[377166963,1754266232981,-1409.23,0.00026366,2]
[377166964,1754266232990,-1550.02,0.00026393,2]
[377166965,1754266232999,-1000.0,0.00026399,2]
[377166966,1754266233009,-2500.0,0.00026496,7]
[377166967,1754266233018,-2500.0,0.00026505,7]
[377166968,1754266233028,-2500.0,0.00026513,7]
[377166969,1754266233038,-2500.0,0.00026522,7]
[377166970,1754266233048,-2500.0,0.00026531,7]
[377166971,1754266233058,-2500.0,0.0002654,7]
[377166972,1754266233067,-2500.0,0.00026549,7]
[377166973,1754266233077,-2500.0,0.00026557,7]
[377166974,1754266233087,-841.41768095,0.00026557,7]
[377166975,1754266233097,-2500.0,0.00026566,7]
[377166976,1754266233106,-2500.0,0.00026575,7]
[377166977,1754266233116,-7117.17,0.00026591,2]
[377166978,1754266233125,-306.54,0.00026591,2]
[377166979,1754266233135,-92.59756267,0.00026757,2]
[377166989,1754266238336,-597.04899207,0.00022645,3]
[377166991,1754266238347,-1290.95100793,0.00022645,3]
[377166993,1754266238357,-3776.0,0.00024885,3]
[377166995,1754266238366,-1824.39067598,0.00026757,2]
[377167000,1754266238428,-398.94701584,0.0002387,2]
[377167002,1754266238439,-889.43298416,0.0002387,2]
[377167004,1754266238449,-341.09176135,0.00026757,2]
[377167006,1754266238458,-175.0,0.00026957,7]
[377167008,1754266238469,-150.0,0.00027,2]
[377167010,1754266238478,-52.47495974,0.00027032,30]
[377167015,1754266238517,-208.32504026,0.00027032,30]
[377167017,1754266238527,-156.99077406,0.00027049,2]
[377167019,1754266238539,-3471.75922594,0.00027049,2]
[377167021,1754266238548,-160.0,0.00027086,2]
[377167023,1754266238558,-841.41768095,0.00027086,2]
[377167025,1754266238567,-457.13520606,0.00027086,2]
[377167027,1754266238577,-222.0,0.000271,2]
[377167029,1754266238586,-300.0,0.00027397,2]
[377167031,1754266238595,-2705.32,0.00027436,2]
[377167032,1754266238604,-328.94872175,0.00027669,2]
[377167036,1754266238617,-2422.05127825,0.00027669,2]
[377167038,1754266238626,-1299.38,0.00027675,2]
[377167040,1754266238636,-8102.97326525,0.0002773,2]
[377167042,1754266238647,-15797.02673475,0.0002773,2]
[377167043,1754266238656,-200.0,0.00027845,2]
[377167044,1754266238665,-5000.0,0.0002787,2]
[377167045,1754266238675,-250.0,0.00027883,2]
[377167046,1754266238684,-576.08910464,0.00027884,2]
[377167047,1754266238696,-859.17381,0.00027884,2]
[377167049,1754266238707,-266.83708536,0.00027884,2]
[377167051,1754266238717,-150.0,0.00027896,2]
[377167053,1754266238726,-655.51291464,0.00027932,2]
[377167057,1754266238750,-953.82884201,0.00025601,2]
[377167071,1754266238879,-334.55115799,0.00025601,2]
[377167073,1754266238888,-1288.38,0.00027331,2]
[377167074,1754266238898,-344.48708536,0.00027932,2]
[377167075,1754266238907,-841.41768095,0.00028,3]
[377167076,1754266238916,-841.41768095,0.00028,3]
[377167077,1754266238925,-841.41768095,0.00028,7]
[377167078,1754266238935,-26205.37,0.00028002,2]
[377167079,1754266238944,-150.0,0.00028008,2]
[377167080,1754266238953,-217.0,0.0002829,2]
[377167081,1754266238963,-249.99,0.00028483,2]
[377167082,1754266238973,-5351.57,0.00028668,2]
[377167083,1754266238982,-216.05687978,0.00028746,10]
[377167084,1754266238991,-1299.38,0.00028993,2]
[377167085,1754266239000,-841.41768095,0.00029,10]
[377167086,1754266239010,-841.41768095,0.00029,10]
[377167087,1754266239020,-188.17,0.00029427,2]
[377167088,1754266239029,-212.0,0.0002947,2]
[377167089,1754266239038,-170.554,0.00029761,24]
[377167090,1754266239048,-1461.643,0.00029761,24]
[377167091,1754266239058,-838.19,0.00029815,2]
[377167092,1754266239067,-500.0,0.00029826,2]
[377167093,1754266239077,-500.0,0.00029826,2]
[377167094,1754266239089,-500.0,0.00029826,2]
[377167095,1754266239098,-150.0,0.00029826,2]
[377167096,1754266239107,-150.0,0.00029826,2]
[377167097,1754266239116,-2588.86,0.00030028,2]
[377167098,1754266239126,-1708.63,0.00030043,2]
[377167100,1754266239135,-500.0,0.000301,2]
[377167101,1754266239145,-500.0,0.000301,2]
[377167102,1754266239155,-2750.8,0.00030213,120]
[377167103,1754266239168,-1777.53,0.00030252,2]
[377167104,1754266239177,-1299.38,0.00030311,2]
[377167105,1754266239187,-500.0,0.00030374,2]
[377167106,1754266239196,-500.0,0.00030374,2]
[377167107,1754266239206,-500.0,0.00030374,2]
[377167108,1754266239215,-500.0,0.00030389,5]
[377167109,1754266239224,-500.0,0.00030389,5]
[377167110,1754266239234,-168.71613526,0.00030389,5]
[377167111,1754266239243,-500.0,0.00030389,5]
[377167112,1754266239253,-500.0,0.00030389,5]
[377167113,1754266239263,-768.45,0.00030443,2]
[377167114,1754266239273,-169.41,0.00030445,30]
[377167115,1754266239283,-165.5,0.0003056,2]
[377167116,1754266239292,-666.0,0.0003056,3]
[377167117,1754266239301,-500.0,0.00030648,2]
[377167118,1754266239311,-500.0,0.00030648,2]
[377167119,1754266239320,-500.0,0.00030648,2]
[377167120,1754266239329,-207.0,0.0003065,2]
[377167121,1754266239339,-5858.93,0.00030768,2]
[377167122,1754266239349,-500.0,0.00030833,3]
[377167123,1754266239358,-500.0,0.00030833,5]
[377167124,1754266239368,-358.24921407,0.00030922,2]
[377167125,1754266239378,-500.0,0.00030922,2]
[377167126,1754266239387,-500.0,0.00030922,2]
[377167127,1754266239397,-838.19,0.00030934,2]
[377167128,1754266239408,-500.0,0.00030937,5]
[377167129,1754266239417,-1000.0,0.00030937,5]
[377167130,1754266239427,-500.0,0.00031196,2]
[377167131,1754266239436,-500.0,0.00031196,2]
[377167132,1754266239446,-872.60388033,0.00031381,3]
[377167133,1754266239455,-1000.0,0.00031423,2]
[377167134,1754266239465,-500.0,0.0003147,2]
[377167135,1754266239475,-500.0,0.0003147,2]
[377167136,1754266239484,-1500.0,0.00031485,5]
[377167137,1754266239494,-1299.38,0.00031628,2]
[377167138,1754266239503,-166.84,0.00031691,2]
[377167139,1754266239512,-500.0,0.00031744,2]
[377167140,1754266239522,-500.0,0.00031744,2]
[377167141,1754266239531,-202.0,0.0003184,2]
[377167142,1754266239541,-500.0,0.00032018,2]
[377167143,1754266239551,-500.0,0.00032018,2]
[377167144,1754266239562,-2000.0,0.00032033,5]
[377167145,1754266239571,-838.19,0.00032052,2]
[377167146,1754266239581,-528.85,0.00032252,120]
[377167147,1754266239591,-210.29156939,0.00032292,2]
[377167148,1754266239600,-500.0,0.00032292,2]
[377167149,1754266239609,-500.0,0.00032566,2]
[377167150,1754266239619,-154.57,0.00032666,2]
[377167151,1754266239628,-478.34367214,0.0003284,2]
[377167152,1754266239637,-300.0,0.00032876,120]
[377167153,1754266239646,-197.0,0.0003302,2]
[377167154,1754266239656,-838.19,0.0003317,2]
[377167155,1754266239665,-9999.99,0.00033844,2]
[377167156,1754266239674,-162534.49,0.00033844,10]
[377167157,1754266239683,-150.99,0.00033844,2]
[377167158,1754266239692,-299.99,0.00033844,30]
[377167159,1754266239701,-5612.03,0.00033844,2]
[377167160,1754266239710,-2510.25,0.00033844,2]
[377167161,1754266239720,-200.0,0.00034,30]
[377167162,1754266239730,-925.37,0.00034029,2]
[377167163,1754266239739,-200.0,0.00034047,2]
[377167164,1754266239749,-184.87,0.000342,2]
[377167165,1754266239758,-192.0,0.000342,2]
[377167166,1754266239767,-838.19,0.00034288,2]
[377167167,1754266239776,-166.84,0.00034306,2]
[377167168,1754266239785,-535.227472,0.000347,20]
[377167169,1754266239795,-1000.0,0.00034914,2]
[377167170,1754266239806,-187.0,0.0003539,2]
[377167171,1754266239816,-500.0,0.0003549,7]
[377167172,1754266239826,-500.0,0.00035523,7]
[377167173,1754266239835,-3672.11249468,0.00035735,8]
[377167174,1754266239845,-528.85,0.00035835,120]
[377167175,1754266239855,-150.0,0.00035861,2]
[377167176,1754266239864,-2000.0,0.000362,2]
[377167177,1754266239873,-14707.8643841,0.00036285,2]
[377167178,1754266239883,-200.766738,0.00036295,7]
[377167179,1754266239892,-200.766738,0.00036295,7]
[377167180,1754266239901,-151.0,0.00036295,7]
[377167181,1754266239911,-151.0,0.00036295,7]
[377167182,1754266239920,-300.0,0.00036354,2]
[377167183,1754266239929,-503.37684399,0.00036354,30]
[377167184,1754266239938,-554.62,0.000365,7]
[377167185,1754266239953,-182.0,0.0003657,2]
[377167186,1754266239964,-571.23548305,0.00036847,7]
[377167187,1754266239974,-166.84,0.00036921,2]
[377167188,1754266239983,-500.0,0.00036975,7]
[377167189,1754266239992,-195.1793283,0.00037089,7]
[377167190,1754266240001,-280.0,0.000374,30]
[377167191,1754266240011,-500.0,0.000376,5]
[377167192,1754266240020,-500.0,0.000376,5]
[377167193,1754266240029,-500.0,0.000376,5]
[377167194,1754266240039,-177.0,0.0003776,2]
[377167195,1754266240048,-1000.0,0.00038148,5]
[377167196,1754266240057,-1000.0,0.00038148,5]
[377167197,1754266240070,-165.5,0.00038201,2]
[377167198,1754266240080,-1000.0,0.00038406,2]
[377167199,1754266240090,-1500.0,0.00038696,5]
[377167200,1754266240099,-1000.0,0.00038696,5]
[377167201,1754266240108,-2000.0,0.000389,2]
[377167202,1754266240117,-172.0,0.0003894,2]
[377167203,1754266240127,-500.0,0.00039004,7]
[377167204,1754266240137,-500.0,0.00039014,2]
[377167205,1754266240146,-1702.1,0.00039038,2]
[377167206,1754266240155,-2000.0,0.00039244,5]
[377167207,1754266240167,-500.0,0.00039284,7]
[377167208,1754266240176,-150.0,0.00039343,120]
[377167209,1754266240186,-150.0,0.00039391,120]
[377167210,1754266240195,-528.85,0.00039419,120]
[377167211,1754266240204,-162.32781974,0.00039539,7]
[377167212,1754266240215,-2500.0,0.00039792,5]
[377167213,1754266240224,-14707.8643841,0.0003993,3]
[377167214,1754266240233,-14707.8643841,0.0003999,3]
[377167215,1754266240243,-50000.0,0.0004,40]
[377167216,1754266240253,-167.0,0.0004012,2]
[377167218,1754266240262,-500.0,0.00040304,30]
[377167219,1754266240271,-3000.0,0.0004034,5]
[377167220,1754266240281,-150.0,0.00040422,120]
[377167221,1754266240290,-500.0,0.00040588,30]
[377167222,1754266240300,-150.0,0.00040789,2]
[377167223,1754266240309,-14707.8643841,0.00040878,3]
[377167224,1754266240319,-3500.0,0.00040888,5]
[377167225,1754266240328,-14707.8643841,0.0004099,3]
[377167226,1754266240337,-12797.0813983,0.0004099,3]
[377167227,1754266240347,-50000.0,0.00041,41]
[377167228,1754266240357,-170.0,0.00041,90]
[377167229,1754266240367,-391.0,0.0004114,30]
[377167230,1754266240377,-12797.0813983,0.00041208,3]
[377167231,1754266240386,-14707.8643841,0.00041218,3]
[377167232,1754266240396,-500.0,0.00041227,30]
[377167233,1754266240405,-162.0,0.0004131,2]
[377167234,1754266240415,-500.0,0.00041364,30]
[377167235,1754266240425,-4000.0,0.00041436,10]
[377167236,1754266240434,-6398.54069917,0.0004157,3]
[377167237,1754266240444,-500.0,0.00041575,30]
[377167238,1754266240454,-1800.0,0.000416,2]
[377167239,1754266240463,-500.0,0.00041691,10]
[377167240,1754266240473,-1000.0,0.00041897,2]
[377167241,1754266240482,-6398.54069917,0.0004196,3]
[377167242,1754266240491,-6398.54069917,0.00041963,3]
[377167243,1754266240501,-14707.8643841,0.00041969,3]
[377167244,1754266240510,-12797.0813983,0.00041969,3]
[377167245,1754266240519,-150.0,0.00041973,3]
[377167246,1754266240529,-14707.8643841,0.0004198,3]
[377167247,1754266240539,-19195.6220975,0.0004198,3]
[377167248,1754266240548,-1457.05349626,0.00041984,10]
[377167249,1754266240558,-14707.8643841,0.0004199,3]
[377167250,1754266240568,-25594.1627967,0.0004199,3]
[377167251,1754266240578,-50000.0,0.00042,42]
[377167252,1754266240587,-154.57,0.0004215,2]
[377167253,1754266240597,-1122.62673135,0.00042239,10]
[377167254,1754266240606,-500.0,0.00042427,30]
[377167255,1754266240615,-157.0,0.0004249,2]
[377167256,1754266240625,-817.87,0.00042594,30]
[377167257,1754266240635,-500.0,0.00042684,30]
[377167258,1754266240643,-500.0,0.00042767,30]
[377167259,1754266240653,-500.0,0.00042772,30]
[377167260,1754266240662,-6398.54069917,0.0004296,3]
[377167261,1754266240672,-14707.8643841,0.00042969,3]
[377167262,1754266240681,-12797.0813983,0.00042969,3]
[377167263,1754266240691,-14707.8643841,0.0004298,3]
[377167264,1754266240700,-12797.0813983,0.0004298,3]
[377167265,1754266240710,-14707.8643841,0.0004299,3]
[377167266,1754266240720,-25594.1627967,0.0004299,3]
[377167267,1754266240730,-50000.0,0.00043,43]
[377167268,1754266240739,-5510.0,0.00043,5]
[377167269,1754266240749,-528.85,0.00043002,120]
[377167270,1754266240759,-500.0,0.00043516,30]
[377167271,1754266240768,-151.0,0.0004367,2]
[377167272,1754266240778,-14707.8643841,0.0004369,3]
[377167273,1754266240787,-6398.54069917,0.0004369,3]
[377167274,1754266240796,-999.0,0.00043835,120]
[377167275,1754266240806,-500.0,0.00043862,30]
[377167276,1754266240816,-6398.54069917,0.00043969,3]
[377167277,1754266240825,-14707.8643841,0.0004398,3]
[377167278,1754266240835,-12797.0813983,0.0004398,3]
[377167279,1754266240844,-29415.7287683,0.0004399,3]
[377167280,1754266240855,-25594.1627967,0.0004399,3]
[377167281,1754266240864,-50000.0,0.00044,44]
[377167282,1754266240873,-535.227472,0.00044,57]
[377167283,1754266240882,-563.63,0.00044,14]
[377167284,1754266240891,-154.83,0.00044,30]
[377167285,1754266240901,-1800.0,0.000444,2]
[377167286,1754266240910,-500.0,0.00044441,30]
[377167287,1754266240919,-500.0,0.00044527,30]
[377167288,1754266240929,-6398.54069917,0.00044533,3]
[377167289,1754266240938,-500.0,0.00044543,2]
[377167290,1754266240947,-500.0,0.00044543,2]
[377167291,1754266240956,-500.0,0.00044543,2]
[377167292,1754266240966,-500.0,0.00044543,2]
[377167293,1754266240976,-500.0,0.00044543,2]
[377167295,1754266240986,-527.8623912,0.00044543,2]
[377167297,1754266240995,-191.05903551,0.00044548,30]
[377167299,1754266241004,-500.0,0.00044654,30]
[377167300,1754266241014,-150.0,0.0004486,2]
[377167301,1754266241023,-14707.8643841,0.00044969,3]
[377167302,1754266241032,-6398.54069917,0.00044969,3]
[377167304,1754266241041,-12797.0813983,0.0004498,3]
[377167305,1754266241052,-29415.7287683,0.0004499,3]
[377167306,1754266241061,-6398.54069917,0.0004499,3]
[377167307,1754266241070,-50000.0,0.00045,45]
[377167308,1754266241080,-151.0,0.00045,14]
[377167309,1754266241089,-151.0,0.00045,14]
[377167310,1754266241099,-1000.0,0.00045,120]
[377167311,1754266241108,-151.0,0.00045123,120]
[377167312,1754266241118,-563.63,0.000452,14]
[377167314,1754266241127,-154.83,0.000452,30]
[377167316,1754266241136,-548.0,0.00045254,60]
[377167317,1754266241145,-999.0,0.00045616,120]
[377167319,1754266241154,-211.38371089,0.0004577,3]
[377167320,1754266241165,-165.5,0.00045841,2]
[377167321,1754266241174,-500.0,0.00045939,30]
[377167322,1754266241184,-14707.8643841,0.00045969,3]
[377167323,1754266241193,-14707.8643841,0.0004598,3]
[377167324,1754266241203,-14707.8643841,0.0004599,3]
[377167325,1754266241214,-14707.8643841,0.0004599,3]
[377167326,1754266241223,-50000.0,0.00046,46]
[377167327,1754266241232,-841.41768095,0.00046,30]
[377167328,1754266241242,-841.41768095,0.00046,120]
[377167329,1754266241252,-563.63,0.00046,14]
[377167330,1754266241261,-1000.0,0.00046,120]
[377167331,1754266241271,-150.0,0.0004604,2]
[377167332,1754266241280,-462.18,0.000461,14]
[377167333,1754266241290,-150.0,0.00046471,14]
[377167334,1754266241299,-50000.0,0.00047,47]
[377167335,1754266241308,-151.0,0.00047,14]
[377167336,1754266241318,-1000.0,0.00047,120]
[377167337,1754266241327,-150.0,0.0004722,2]
[377167338,1754266241339,-150.0,0.00047225,14]
[377167339,1754266241348,-500.0,0.00047327,30]
[377167340,1754266241358,-999.0,0.00047397,120]
[377167341,1754266241367,-563.63,0.000474,14]
[377167342,1754266241377,-500.0,0.00047424,30]
[377167343,1754266241386,-500.0,0.00047664,30]
[377167344,1754266241395,-4000.0,0.00047744,8]
[377167345,1754266241405,-50000.0,0.00048,48]
[377167346,1754266241415,-1000.0,0.00048,120]
[377167347,1754266241424,-150.0,0.00048384,120]
[377167348,1754266241434,-150.0,0.0004841,2]
[377167349,1754266241443,-50000.0,0.00049,49]
[377167350,1754266241453,-1000.0,0.00049,120]
[377167351,1754266241464,-500.0,0.00049041,2]
[377167352,1754266241473,-500.0,0.00049099,30]
[377167353,1754266241483,-999.0,0.00049178,120]
[377167354,1754266241493,-35761.0,0.00049288,120]
[377167355,1754266241503,-6560.0,0.00049288,120]
[377167356,1754266241512,-34448.1847,0.00049299,2]
[377167357,1754266241522,-189800.9662,0.00049299,2]
[377167358,1754266241532,-1000.0,0.00049299,2]
[377167359,1754266241541,-1323.91397942,0.00049314,120]
[377167360,1754266241551,-382.9439487,0.00049314,2]
[377167361,1754266241561,-200.766738,0.00049315,14]
[377167362,1754266241570,-200.766738,0.00049315,14]
[377167363,1754266241580,-151.0,0.00049315,14]
[377167364,1754266241589,-151.0,0.00049315,120]
[377167365,1754266241605,-400.0,0.00049315,120]
[377167366,1754266241618,-219.53334775,0.00049315,120]
[377167367,1754266241627,-400.0,0.00049315,120]
[377167368,1754266241638,-1068.84,0.00049315,120]
[377167369,1754266241647,-400.0,0.00049315,120]
[377167370,1754266241657,-403.91125021,0.00049315,120]
[377167371,1754266241666,-571.69,0.00049315,120]
[377167372,1754266241676,-400.0,0.00049315,120]
[377167373,1754266241685,-400.0,0.00049315,120]
[377167374,1754266241695,-400.0,0.00049315,120]
[377167375,1754266241704,-1099.65,0.00049315,120]
[377167376,1754266241714,-194.4560512,0.00049315,120]
[377167377,1754266241724,-566.06,0.00049315,120]
[377167378,1754266241733,-458.21,0.00049315,120]
[377167379,1754266241743,-400.0,0.00049315,120]
[377167380,1754266241753,-400.0,0.00049315,120]
[377167381,1754266241763,-400.0,0.00049315,120]
[377167382,1754266241773,-870.993468,0.00049315,120]
[377167383,1754266241782,-400.0,0.00049315,120]
[377167384,1754266241792,-400.0,0.00049315,120]
[377167385,1754266241801,-400.0,0.00049315,120]
[377167386,1754266241811,-720.227613,0.00049315,120]
[377167387,1754266241821,-940.144052,0.00049315,120]
[377167388,1754266241831,-400.0,0.00049315,120]
[377167389,1754266241840,-1147.18,0.00049315,120]
[377167390,1754266241850,-400.0,0.00049315,120]
[377167391,1754266241859,-157.100014,0.00049315,120]
[377167392,1754266241869,-1083.39,0.00049315,120]
[377167393,1754266241878,-423.23,0.00049315,30]
[377167394,1754266241888,-553.68,0.00049315,120]
[377167395,1754266241897,-154.865789,0.00049315,120]
[377167396,1754266241907,-400.0,0.00049315,120]
[377167397,1754266241916,-400.0,0.00049315,120]
[377167398,1754266241926,-500.0,0.00049315,120]
[377167399,1754266241935,-500.0,0.00049315,120]
[377167400,1754266241945,-500.0,0.00049315,120]
[377167401,1754266241954,-500.0,0.00049315,120]
[377167402,1754266241964,-500.0,0.00049315,120]
[377167403,1754266241974,-400.0,0.00049315,120]
[377167404,1754266241983,-500.0,0.00049315,120]
[377167405,1754266241993,-400.0,0.00049315,120]
[377167406,1754266242003,-400.0,0.00049315,120]
[377167407,1754266242012,-400.0,0.00049315,120]
[377167408,1754266242022,-400.0,0.00049315,120]
[377167409,1754266242031,-638.26,0.00049315,120]
[377167410,1754266242040,-400.0,0.00049315,120]
[377167411,1754266242050,-400.0,0.00049315,120]
[377167412,1754266242059,-836.44,0.00049315,120]
[377167413,1754266242069,-400.0,0.00049315,120]
[377167414,1754266242078,-400.0,0.00049315,120]
[377167415,1754266242088,-400.0,0.00049315,120]
[377167416,1754266242098,-477.59,0.00049315,120]
[377167417,1754266242107,-583.64,0.00049315,120]
[377167418,1754266242116,-684.05,0.00049315,120]
[377167419,1754266242126,-615.77,0.00049315,120]
[377167420,1754266242135,-584.52,0.00049315,120]
[377167421,1754266242144,-400.0,0.00049315,120]
[377167422,1754266242154,-489.14,0.00049315,120]
[377167423,1754266242164,-400.0,0.00049315,120]
[377167424,1754266242177,-868.81,0.00049315,120]
[377167425,1754266242187,-690.52,0.00049315,60]
[377167426,1754266242197,-420.51,0.00049315,120]
[377167427,1754266242207,-439.87,0.00049315,120]
[377167428,1754266242218,-702.58,0.00049315,120]
[377167429,1754266242227,-400.0,0.00049315,120]
[377167430,1754266242237,-603.37,0.00049315,120]
[377167431,1754266242521,-400.0,0.00049315,120]
[377167432,1754266242531,-555.17,0.00049315,120]
[377167433,1754266242540,-400.0,0.00049315,120]
[377167434,1754266242550,-400.0,0.00049315,120]
[377167435,1754266242559,-531.0,0.00049315,120]
[377167436,1754266242569,-445.54,0.00049315,120]
[377167437,1754266242579,-400.0,0.00049315,120]
[377167438,1754266242588,-625.64,0.00049315,120]
[377167439,1754266242597,-1465.42,0.00049315,120]
[377167440,1754266242607,-400.0,0.00049315,120]
[377167441,1754266242616,-400.0,0.00049315,120]
[377167442,1754266242625,-992.0,0.00049315,120]
[377167443,1754266242635,-400.0,0.00049315,120]
[377167444,1754266242644,-400.0,0.00049315,120]
[377167445,1754266242653,-614.41,0.00049315,120]
[377167446,1754266242663,-638.57,0.00049315,120]
[377167447,1754266242672,-400.0,0.00049315,120]
[377167448,1754266242681,-400.0,0.00049315,120]
[377167449,1754266242690,-400.0,0.00049315,120]
[377167450,1754266242700,-1024.51,0.00049315,120]
[377167451,1754266242709,-513.84,0.00049315,120]
[377167452,1754266242719,-464.89493697,0.00049315,120]
[377167453,1754266242728,-630.95,0.00049315,120]
[377167454,1754266242738,-400.0,0.00049315,120]
[377167455,1754266242747,-400.0,0.00049315,120]
[377167456,1754266242757,-400.0,0.00049315,120]
[377167457,1754266242766,-510.13,0.00049315,120]
[377167458,1754266242776,-400.0,0.00049315,120]
[377167459,1754266242786,-473.08,0.00049315,60]
[377167460,1754266242803,-400.0,0.00049315,120]
[377167461,1754266242814,-400.0,0.00049315,120]
[377167462,1754266242825,-789.14,0.00049315,120]
[377167463,1754266242836,-670.88,0.00049315,120]
[377167464,1754266242846,-400.0,0.00049315,120]
[377167465,1754266242856,-400.0,0.00049315,120]
[377167466,1754266242867,-491.05,0.00049315,120]
[377167467,1754266242877,-400.0,0.00049315,120]
[377167468,1754266242887,-400.0,0.00049315,120]
[377167469,1754266242897,-670.31,0.00049315,120]
[377167470,1754266242907,-400.0,0.00049315,120]
[377167471,1754266242917,-567.58,0.00049315,120]
[377167472,1754266242926,-1338.8,0.00049315,120]
[377167473,1754266242937,-400.0,0.00049315,120]
[377167474,1754266242947,-400.0,0.00049315,120]
[377167475,1754266242956,-1094.27,0.00049315,120]
[377167476,1754266242965,-1146.97,0.00049315,120]
[377167477,1754266242975,-400.0,0.00049315,120]
[377167478,1754266242984,-400.0,0.00049315,120]
[377167479,1754266242993,-604.37,0.00049315,120]
[377167480,1754266243003,-1247.42,0.00049315,120]